fUST/lending_fUST_20250122
["ID","MTS","AMOUNT","RATE_DAILY","PERIOD"]
[349996137,1737557433913,-200.0,0.00019995,3]
[349996138,1737557433923,-194.19184909,0.00019995,3]
[349996139,1737557433934,-502.76131348,0.00019995,3]
[349996140,1737557433945,-500.0,0.00019995,3]
[349996141,1737557433956,-500.0,0.00019995,3]
[349996142,1737557433967,-500.0,0.00019995,3]
[349996143,1737557433976,-500.0,0.00019995,3]
[349996144,1737557433986,-500.0,0.00019995,3]
[349996145,1737557433998,-500.0,0.00019995,3]
[349996146,1737557434009,-500.0,0.00019995,3]
[349996147,1737557434020,-500.0,0.00019995,3]
[349996148,1737557434032,-500.0,0.00019995,3]
[349996149,1737557434045,-500.0,0.00019995,3]
[349996150,1737557434061,-500.0,0.00019995,3]
[349996151,1737557434072,-6365.25,0.00019995,3]
[349996152,1737557434083,-503.10793649,0.00019995,3]
[349996153,1737557434094,-506.07346661,0.00019995,3]
[349996154,1737557434104,-500.0,0.00019995,3]
[349996155,1737557434115,-500.0,0.00019995,3]
[349996156,1737557434126,-500.0,0.00019995,3]
[349996157,1737557434136,-500.0,0.00019995,3]
[349996158,1737557434147,-1015.1,0.00019995,3]
[349996159,1737557434158,-500.0,0.00019995,3]
[349996160,1737557434167,-500.0,0.00019995,3]
[349996161,1737557434177,-500.0,0.00019995,3]
[349996162,1737557434186,-500.0,0.00019995,3]
[349996163,1737557434196,-500.0,0.00019995,3]
[349996164,1737557434205,-500.0,0.00019995,3]
[349996165,1737557434215,-500.0,0.00019995,3]
[349996166,1737557434224,-500.0,0.00019995,3]
[349996167,1737557434234,-500.0,0.00019995,3]
[349996168,1737557434244,-500.0,0.00019995,3]
[349996169,1737557434254,-500.0,0.00019995,3]
[349996170,1737557434263,-500.0,0.00019995,3]
[349996171,1737557434272,-504.31683007,0.00019995,3]
[349996172,1737557434282,-500.0,0.00019995,3]
[349996173,1737557434291,-638.86734766,0.00019995,3]
[349996174,1737557434301,-500.0,0.00019995,3]
[349996175,1737557434311,-500.88200844,0.00019995,3]
[349996176,1737557434320,-500.0,0.00019995,3]
[349996177,1737557434330,-1043.43,0.00019995,3]
[349996178,1737557434340,-500.0,0.00019995,3]
[349996179,1737557434350,-500.0,0.00019995,3]
[349996180,1737557434359,-505.1804492,0.00019995,3]
[349996181,1737557434369,-500.0,0.00019995,3]
[349996182,1737557434379,-500.0,0.00019995,3]
[349996183,1737557434389,-225.72483307,0.00019995,2]
[349996184,1737557434399,-461.96257009,0.00019995,2]
[349996185,1737557434409,-247.57572543,0.00019995,2]
[349996186,1737557434418,-500.0,0.00019995,2]
[349996187,1737557434428,-173.35728207,0.00019995,2]
[349996188,1737557434438,-500.0,0.00019995,2]
[349996189,1737557434448,-500.0,0.00019995,2]
[349996190,1737557434458,-500.0,0.00019995,2]
[349996191,1737557434468,-215.08577923,0.00019995,2]
[349996192,1737557434478,-500.0,0.00019995,2]
[349996193,1737557434487,-500.0,0.00019995,2]
[349996194,1737557434497,-500.0,0.00019995,2]
[349996195,1737557434507,-500.0,0.00019995,2]
[349996196,1737557434517,-500.0,0.00019995,2]
[349996197,1737557434530,-500.0,0.00019995,2]
[349996198,1737557434547,-378.09270464,0.00019995,2]
[349996199,1737557434559,-500.0,0.00019995,2]
[349996200,1737557434570,-500.0,0.00019995,2]
[349996201,1737557434580,-500.0,0.00019995,2]
[349996202,1737557434590,-500.0,0.00019995,2]
[349996203,1737557434599,-500.0,0.00019995,2]
[349996204,1737557434609,-500.0,0.00019995,2]
[349996205,1737557434619,-500.0,0.00019995,2]
[349996206,1737557434629,-500.0,0.00019995,3]
[349996207,1737557434639,-506.84633649,0.00019995,3]
[349996208,1737557434648,-500.0,0.00019995,3]
[349996209,1737557434658,-499.99999999,0.00019995,2]
[349996210,1737557434667,-503.99801622,0.00019995,3]
[349996211,1737557434677,-500.0,0.00019995,3]
[349996212,1737557434687,-503.40974294,0.00019995,3]
[349996213,1737557434698,-500.0,0.00019995,3]
[349996214,1737557434707,-538.66954252,0.00019995,3]
[349996215,1737557434717,-500.0,0.00019995,3]
[349996216,1737557434727,-500.0,0.00019995,3]
[349996217,1737557434737,-4040.52,0.00019995,3]
[349996218,1737557434748,-500.0,0.00019995,3]
[349996219,1737557434759,-441.06880133,0.00019995,3]
[349996220,1737557434770,-494.39543371,0.00019995,3]
[349996221,1737557434780,-500.0,0.00019995,3]
[349996222,1737557434789,-211.4670592,0.00019995,3]
[349996223,1737557434800,-2270.05,0.00019995,3]
[349996224,1737557434810,-500.0,0.00019995,3]
[349996225,1737557434820,-500.0,0.00019995,3]
[349996226,1737557434831,-11109.96,0.00019995,3]
[349996227,1737557434841,-500.0,0.00019995,3]
[349996228,1737557434851,-500.0,0.00019995,3]
[349996229,1737557434860,-520.30885521,0.00019995,3]
[349996230,1737557434870,-500.0,0.00019995,3]
[349996231,1737557434879,-1750.11,0.00019995,3]
[349996232,1737557434889,-500.0,0.00019995,3]
[349996233,1737557434899,-500.0,0.00019995,3]
[349996234,1737557434909,-500.0,0.00019995,3]
[349996235,1737557434919,-500.0,0.00019995,3]
[349996236,1737557434928,-500.0,0.00019995,3]
[349996237,1737557434938,-500.0,0.00019995,3]
[349996238,1737557435008,-769.85,0.00019995,3]
[349996239,1737557435025,-500.0,0.00019995,3]
[349996240,1737557435035,-500.0,0.00019995,3]
[349996241,1737557435045,-500.0,0.00019996,3]
[349996242,1737557435058,-500.0,0.00019996,3]
[349996243,1737557435068,-500.0,0.00019996,3]
[349996244,1737557435077,-644.06,0.00019996,3]
[349996245,1737557435087,-512.13122052,0.00019996,3]
[349996246,1737557435097,-500.0,0.00019996,3]
[349996247,1737557435107,-501.88368346,0.00019996,3]
[349996248,1737557435117,-500.0,0.00019996,3]
[349996249,1737557435127,-500.0,0.00019996,3]
[349996250,1737557435137,-1099.92,0.00019996,3]
[349996251,1737557435147,-500.0,0.00019996,3]
[349996252,1737557435157,-500.0,0.00019996,3]
[349996253,1737557435167,-500.0,0.00019996,3]
[349996254,1737557435177,-500.0,0.00019996,3]
[349996255,1737557435187,-530.2,0.00019996,3]
[349996256,1737557435197,-500.0,0.00019996,3]
[349996257,1737557435206,-500.0,0.00019996,3]
[349996258,1737557435216,-500.0,0.00019996,3]
[349996259,1737557435226,-1300.48,0.00019996,3]
[349996260,1737557435236,-511.43,0.00019996,3]
[349996261,1737557435246,-861.81,0.00019996,3]
[349996262,1737557435256,-500.0,0.00019996,3]
[349996263,1737557435265,-500.0,0.00019996,3]
[349996264,1737557435275,-500.0,0.00019996,3]
[349996265,1737557435285,-500.0,0.00019996,3]
[349996266,1737557435295,-500.0,0.00019996,3]
[349996267,1737557435309,-915.51,0.00019996,3]
[349996268,1737557435319,-500.0,0.00019996,3]
[349996269,1737557435328,-500.0,0.00019996,3]
[349996270,1737557435338,-500.0,0.00019996,3]
[349996271,1737557435347,-500.0,0.00019996,3]
[349996272,1737557435357,-500.0,0.00019996,3]
[349996273,1737557435367,-500.0,0.00019996,3]
[349996274,1737557435376,-571.4,0.00019996,3]
[349996275,1737557435386,-894.15,0.00019996,3]
[349996276,1737557435396,-1196.12,0.00019996,3]
[349996277,1737557435406,-830.86,0.00019996,3]
[349996278,1737557435416,-5109.28,0.00019996,3]
[349996279,1737557435425,-500.0,0.00019996,3]
[349996280,1737557435435,-500.0,0.00019996,3]
[349996281,1737557435445,-504.42855005,0.00019996,3]
[349996282,1737557435455,-1143.39,0.00019996,3]
[349996283,1737557435466,-1143.39,0.00019996,3]
[349996284,1737557435476,-500.0,0.00019996,3]
[349996285,1737557435486,-1143.39,0.00019996,3]
[349996286,1737557435495,-1143.39,0.00019996,3]
[349996287,1737557435506,-1143.39,0.00019996,3]
[349996288,1737557435517,-500.0,0.00019996,3]
[349996289,1737557435527,-692.43,0.00019996,3]
[349996290,1737557435536,-500.0,0.00019996,3]
[349996291,1737557435546,-500.0,0.00019996,3]
[349996292,1737557435557,-500.0,0.00019996,3]
[349996293,1737557435568,-1324.28,0.00019996,3]
[349996294,1737557435577,-500.0,0.00019996,3]
[349996295,1737557435587,-3958.86,0.00019996,3]
[349996296,1737557435596,-500.0,0.00019996,3]
[349996297,1737557435606,-500.0,0.00019996,3]
[349996298,1737557435616,-500.0,0.00019996,3]
[349996299,1737557435626,-829.77,0.00019996,3]
[349996300,1737557435636,-500.0,0.00019996,3]
[349996301,1737557435646,-7661.07,0.00019996,3]
[349996302,1737557435656,-500.0,0.00019996,3]
[349996303,1737557435666,-1214.67,0.00019996,3]
[349996304,1737557435676,-500.0,0.00019996,3]
[349996305,1737557435686,-500.0,0.00019996,3]
[349996306,1737557435696,-500.0,0.00019996,3]
[349996307,1737557435705,-500.0,0.00019996,3]
[349996308,1737557435715,-500.0,0.00019996,3]
[349996309,1737557435725,-500.0,0.00019996,3]
[349996310,1737557435735,-1621.18,0.00019996,3]
[349996311,1737557435745,-500.0,0.00019996,3]
[349996312,1737557435759,-502.46643128,0.00019996,3]
[349996313,1737557435768,-1124.76,0.00019996,3]
[349996314,1737557435778,-4359.39,0.00019996,3]
[349996315,1737557435787,-500.0,0.00019996,3]
[349996316,1737557435798,-500.0,0.00019996,3]
[349996317,1737557435809,-2104.47,0.00019996,3]
[349996318,1737557435819,-1015.1,0.00019996,3]
[349996319,1737557435830,-500.0,0.00019996,3]
[349996320,1737557435840,-2018.62,0.00019996,3]
[349996321,1737557435849,-500.0,0.00019996,3]
[349996322,1737557435859,-500.0,0.00019996,3]
[349996323,1737557435868,-2220.79,0.00019996,2]
[349996324,1737557435879,-500.0,0.00019996,3]
[349996325,1737557435888,-5659.71,0.00019996,3]
[349996326,1737557435898,-500.0,0.00019996,3]
[349996327,1737557435907,-1128.89,0.00019996,3]
[349996328,1737557435916,-507.43455405,0.00019996,3]
[349996329,1737557435926,-500.0,0.00019996,3]
[349996330,1737557435935,-500.0,0.00019996,3]
[349996331,1737557435944,-569.27,0.00019996,3]
[349996332,1737557435954,-500.0,0.00019996,3]
[349996333,1737557435963,-500.0,0.00019996,3]
[349996334,1737557435973,-2229.52,0.00019996,3]
[349996335,1737557435983,-500.0,0.00019996,2]
[349996336,1737557435992,-500.0,0.00019996,3]
[349996337,1737557436001,-333.67624157,0.00019996,2]
[349996338,1737557436011,-500.0,0.00019996,3]
[349996339,1737557436020,-956.37,0.00019996,3]
[349996340,1737557436029,-500.0,0.00019996,3]
[349996341,1737557436039,-740.52,0.00019996,3]
[349996342,1737557436048,-506.49245642,0.00019996,3]
[349996343,1737557436060,-500.0,0.00019996,3]
[349996344,1737557436069,-500.0,0.00019996,3]
[349996345,1737557436079,-505.39153667,0.00019996,3]
[349996346,1737557436088,-47682.4,0.00019996,3]
[349996347,1737557436097,-500.0,0.00019996,3]
[349996348,1737557436106,-1138.06,0.00019996,3]
[349996349,1737557436115,-500.0,0.00019996,3]
[349996350,1737557436187,-1015.34,0.00019996,3]
[349996351,1737557436197,-803.11,0.00019996,3]
[349996352,1737557436207,-509.72419963,0.00019996,3]
[349996353,1737557436216,-504.95010868,0.00019996,3]
[349996354,1737557436225,-534.13484651,0.00019996,3]
[349996355,1737557436235,-1726.44,0.00019996,3]
[349996356,1737557436244,-1047.75,0.00019996,3]
[349996357,1737557436254,-658.72,0.00019996,3]
[349996358,1737557436263,-500.0,0.00019996,3]
[349996359,1737557436272,-500.0,0.00019996,3]
[349996360,1737557436282,-500.0,0.00019996,2]
[349996361,1737557436291,-1167.14,0.00019996,3]
[349996362,1737557436303,-500.0,0.00019996,3]
[349996363,1737557436312,-502.37686188,0.00019996,3]
[349996364,1737557436322,-500.0,0.00019996,3]
[349996365,1737557436331,-500.0,0.00019996,3]
[349996366,1737557436341,-664.07,0.00019997,3]
[349996367,1737557436351,-161.55184455,0.00019997,3]
[349996368,1737557436360,-1143.39,0.00019997,3]
[349996369,1737557436370,-1143.39,0.00019997,3]
[349996370,1737557436380,-1143.39,0.00019997,3]
[349996371,1737557436390,-1143.39,0.00019997,3]
[349996372,1737557436399,-1143.39,0.00019997,3]
[349996373,1737557436409,-1143.39,0.00019997,3]
[349996374,1737557436418,-1143.39,0.00019997,3]
[349996375,1737557436428,-1143.39,0.00019997,3]
[349996376,1737557436438,-1143.39,0.00019997,3]
[349996377,1737557436447,-1143.39,0.00019997,3]
[349996378,1737557436457,-1143.39,0.00019997,3]
[349996379,1737557436466,-943.27,0.00019997,3]
[349996380,1737557436476,-500.0,0.00019997,3]
[349996381,1737557436486,-3103.72,0.00019997,3]
[349996382,1737557436495,-500.0,0.00019997,3]
[349996383,1737557436504,-500.0,0.00019997,3]
[349996384,1737557436514,-1015.1,0.00019997,3]
[349996385,1737557436524,-1015.1,0.00019997,3]
[349996386,1737557436534,-1015.1,0.00019997,3]
[349996387,1737557436544,-1015.1,0.00019997,3]
[349996388,1737557436558,-1015.1,0.00019997,3]
[349996389,1737557436568,-1290.66,0.00019997,3]
[349996390,1737557436578,-15039.52,0.00019997,3]
[349996391,1737557436589,-54767.63,0.00019997,3]
[349996392,1737557436599,-500.0,0.00019997,3]
[349996393,1737557436608,-500.0,0.00019997,3]
[349996394,1737557436618,-2584.3,0.00019997,3]
[349996395,1737557436628,-1293.51,0.00019997,3]
[349996396,1737557436638,-500.0,0.00019997,3]
[349996397,1737557436648,-500.0,0.00019997,3]
[349996398,1737557436658,-500.0,0.00019998,3]
[349996399,1737557436669,-640.91251532,0.00019998,3]
[349996400,1737557436682,-500.0,0.00019998,3]
[349996401,1737557436699,-509.33945874,0.00019998,3]
[349996402,1737557436720,-500.0,0.00019998,3]
[349996403,1737557436736,-500.0,0.00019998,3]
[349996404,1737557436754,-500.0,0.00019998,3]
[349996405,1737557436776,-500.0,0.00019998,3]
[349996406,1737557436796,-500.0,0.00019998,3]
[349996407,1737557436819,-500.0,0.00019998,3]
[349996408,1737557436840,-500.0,0.00019998,3]
[349996409,1737557436856,-500.0,0.00019998,3]
[349996410,1737557436871,-500.0,0.00019998,3]
[349996411,1737557436890,-500.0,0.00019998,3]
[349996412,1737557436910,-500.0,0.00019998,3]
[349996413,1737557436928,-502.03461409,0.00019998,3]
[349996414,1737557436942,-500.0,0.00019998,3]
[349996415,1737557436958,-1055.28,0.00019998,3]
[349996416,1737557436976,-500.0,0.00019998,3]
[349996417,1737557436989,-500.0,0.00019998,3]
[349996418,1737557437005,-500.0,0.00019998,3]
[349996419,1737557437017,-500.0,0.00019998,3]
[349996420,1737557437031,-500.0,0.00019998,3]
[349996421,1737557437046,-705.36,0.00019998,3]
[349996422,1737557437063,-500.0,0.00019998,3]
[349996423,1737557437078,-500.0,0.00019998,3]
[349996424,1737557437094,-500.0,0.00019998,3]
[349996425,1737557437109,-500.0,0.00019998,3]
[349996426,1737557437123,-406.69363866,0.00019998,3]
[349996427,1737557437137,-500.0,0.00019998,3]
[349996428,1737557437152,-500.0,0.00019998,3]
[349996429,1737557437166,-500.0,0.00019998,3]
[349996430,1737557437180,-500.0,0.00019998,3]
[349996431,1737557437194,-500.0,0.00019998,3]
[349996432,1737557437208,-500.0,0.00019998,3]
[349996433,1737557437222,-500.0,0.00019998,3]
[349996434,1737557437236,-476.84003296,0.00019998,3]
[349996435,1737557437249,-500.0,0.00019998,3]
[349996436,1737557437263,-502.09667083,0.00019998,3]
[349996437,1737557437278,-500.0,0.00019998,3]
[349996438,1737557437291,-503.0712292,0.00019998,3]
[349996439,1737557437307,-500.0,0.00019998,3]
[349996440,1737557437322,-500.0,0.00019998,3]
[349996441,1737557437337,-500.0,0.00019998,3]
[349996442,1737557437351,-500.0,0.00019998,3]
[349996443,1737557437365,-500.0,0.00019998,3]
[349996444,1737557437379,-500.0,0.00019998,3]
[349996445,1737557437393,-500.0,0.00019998,3]
[349996446,1737557437408,-500.0,0.00019998,3]
[349996447,1737557437423,-500.0,0.00019998,3]
[349996448,1737557437437,-500.0,0.00019998,3]
[349996449,1737557437451,-507.66941457,0.00019998,3]
[349996450,1737557437463,-663.62,0.00019998,3]
[349996451,1737557437473,-524.2604914,0.00019998,3]
[349996452,1737557437484,-503.94371741,0.00019998,3]
[349996453,1737557437619,-599.53,0.00019998,3]
[349996454,1737557437630,-500.0,0.00019998,3]
[349996455,1737557437639,-500.0,0.00019998,3]
[349996456,1737557437649,-500.0,0.00019998,3]
[349996457,1737557437659,-500.0,0.00019998,3]
[349996458,1737557437668,-500.0,0.00019998,3]
[349996459,1737557437678,-500.0,0.00019998,3]
[349996460,1737557437688,-502.94769296,0.00019998,3]
[349996461,1737557437697,-510.8772051,0.00019998,3]
[349996462,1737557437707,-500.0,0.00019998,3]
[349996463,1737557437717,-949.77,0.00019998,3]
[349996464,1737557437726,-500.0,0.00019998,3]
[349996465,1737557437736,-801.36,0.00019998,3]
[349996466,1737557437747,-500.0,0.00019998,3]
[349996467,1737557437757,-500.0,0.00019998,3]
[349996468,1737557437768,-500.0,0.00019998,3]
[349996469,1737557437778,-449.04373567,0.00019998,3]
[349996470,1737557437789,-500.0,0.00019998,3]
[349996471,1737557437799,-500.0,0.00019998,3]
[349996472,1737557437813,-500.0,0.00019998,3]
[349996473,1737557437823,-500.0,0.00019998,3]
[349996474,1737557437833,-500.0,0.00019998,3]
[349996475,1737557437843,-500.0,0.00019998,3]
[349996476,1737557437853,-937.82,0.00019998,3]
[349996477,1737557437863,-500.0,0.00019998,3]
[349996478,1737557437872,-500.0,0.00019998,3]
[349996479,1737557437882,-500.0,0.00019998,3]
[349996480,1737557437892,-500.0,0.00019998,3]
[349996481,1737557437902,-558.05177927,0.00019998,3]
[349996482,1737557437911,-500.0,0.00019998,3]
[349996483,1737557437921,-188.0,0.00019998,2]
[349996484,1737557437931,-500.0,0.00019998,3]
[349996485,1737557437941,-500.0,0.00019998,3]
[349996486,1737557437951,-500.0,0.00019998,3]
[349996487,1737557437961,-500.0,0.00019998,3]
[349996488,1737557437970,-500.0,0.00019998,3]
[349996489,1737557437980,-500.0,0.00019998,3]
[349996490,1737557437990,-500.0,0.00019998,3]
[349996491,1737557438000,-500.0,0.00019998,3]
[349996492,1737557438010,-500.0,0.00019998,3]
[349996493,1737557438020,-500.0,0.00019998,3]
[349996494,1737557438029,-500.0,0.00019998,3]
[349996495,1737557438038,-500.0,0.00019998,3]
[349996496,1737557438048,-549.51757859,0.00019998,3]
[349996497,1737557438061,-500.0,0.00019998,3]
[349996498,1737557438071,-500.0,0.00019998,2]
[349996499,1737557438080,-654.07,0.00019998,3]
[349996500,1737557438090,-1587.53,0.00019998,3]
[349996501,1737557438099,-236.61571457,0.00019998,3]
[349996502,1737557438109,-515.99982328,0.00019998,3]
[349996503,1737557438118,-500.0,0.00019998,3]
[349996504,1737557438127,-500.0,0.00019998,3]
[349996505,1737557438137,-468.22641138,0.00019998,3]
[349996506,1737557438146,-500.0,0.00019998,3]
[349996507,1737557438157,-500.0,0.00019998,3]
[349996508,1737557438166,-500.0,0.00019998,3]
[349996509,1737557438178,-300.73472603,0.00019998,3]
[349996510,1737557438187,-1648.93,0.00019998,3]
[349996511,1737557438197,-500.0,0.00019998,3]
[349996512,1737557438207,-500.0,0.00019998,3]
[349996514,1737557438218,-500.0,0.00019998,3]
[349996516,1737557438227,-500.0,0.00019998,3]
[349996517,1737557438236,-500.0,0.00019998,3]
[349996518,1737557438246,-500.0,0.00019998,3]
[349996519,1737557438257,-500.0,0.00019998,3]
[349996520,1737557438267,-500.0,0.00019998,3]
[349996521,1737557438278,-500.0,0.00019998,3]
[349996522,1737557438288,-500.0,0.00019998,3]
[349996523,1737557438302,-500.0,0.00019998,3]
[349996524,1737557438315,-500.0,0.00019998,3]
[349996525,1737557438335,-500.0,0.00019998,3]
[349996526,1737557438345,-500.0,0.00019998,3]
[349996527,1737557438355,-662.85,0.00019998,3]
[349996528,1737557438364,-500.0,0.00019998,3]
[349996529,1737557438374,-500.0,0.00019998,3]
[349996530,1737557438383,-500.0,0.00019998,3]
[349996531,1737557438395,-500.0,0.00019998,3]
[349996532,1737557438404,-500.0,0.00019998,3]
[349996533,1737557438414,-507.173208,0.00019998,3]
[349996534,1737557438424,-193.1616153,0.00019998,3]
[349996535,1737557438433,-500.0,0.00019998,3]
[349996536,1737557438443,-500.0,0.00019998,3]
[349996537,1737557438453,-500.0,0.00019998,3]
[349996538,1737557438463,-500.0,0.00019998,3]
[349996539,1737557438473,-501.30812417,0.00019998,3]
[349996540,1737557438482,-500.0,0.00019998,3]
[349996541,1737557438492,-565.70273389,0.00019998,3]
[349996542,1737557438502,-500.0,0.00019998,3]
[349996543,1737557438511,-500.74311581,0.00019998,3]
[349996544,1737557438520,-500.0,0.00019998,3]
[349996545,1737557438530,-453.17521676,0.00019998,3]
[349996546,1737557438539,-599.72865573,0.00019998,3]
[349996547,1737557438548,-500.0,0.00019998,3]
[349996548,1737557438561,-500.0,0.00019998,3]
[349996549,1737557438570,-1037.99,0.00019998,3]
[349996550,1737557438580,-500.0,0.00019998,3]
[349996551,1737557438590,-500.0,0.00019998,3]
[349996552,1737557438599,-500.0,0.00019998,3]
[349996553,1737557438609,-321.65089685,0.00019998,3]
[349996554,1737557438619,-500.0,0.00019998,3]
[349996555,1737557438631,-822.95,0.00019998,3]
[349996556,1737557438641,-500.0,0.00019998,3]
[349996557,1737557438651,-1608.13,0.00019998,3]
[349996558,1737557438660,-500.0,0.00019998,3]
[349996559,1737557438670,-500.0,0.00019998,3]
[349996561,1737557438680,-500.0,0.00019998,3]
[349996562,1737557438689,-1000.0,0.00019998,3]
[349996564,1737557438699,-500.0,0.00019998,3]
[349996566,1737557438708,-500.0,0.00019998,3]
[349996568,1737557438718,-500.0,0.00019998,3]
[349996570,1737557438727,-500.0,0.00019998,3]
[349996572,1737557438737,-502.71888487,0.00019998,3]
[349996574,1737557438749,-500.0,0.00019998,3]
[349996576,1737557438760,-500.0,0.00019998,3]
[349996578,1737557438769,-500.0,0.00019998,3]
[349996580,1737557438780,-545.5,0.00019998,3]
[349996582,1737557438791,-500.0,0.00019998,3]
[349996584,1737557438801,-1143.39,0.00019998,3]
[349996586,1737557438813,-1143.39,0.00019998,3]
[349996588,1737557438823,-1143.39,0.00019998,3]
[349996590,1737557438833,-1143.39,0.00019998,3]
[349996592,1737557438843,-1143.39,0.00019998,3]
[349996594,1737557438853,-500.0,0.00019998,3]
[349996596,1737557438862,-1143.39,0.00019998,3]
[349996598,1737557438872,-1143.39,0.00019998,3]
[349996601,1737557438884,-1143.45773811,0.00019998,3]
[349996603,1737557438893,-500.0,0.00019998,3]
[349996605,1737557438903,-500.0,0.00019998,2]
[349996607,1737557438912,-500.0,0.00019998,3]
[349996609,1737557438922,-500.0,0.00019998,3]
[349996611,1737557438931,-500.0,0.00019998,3]
[349996613,1737557438940,-500.0,0.00019998,3]
[349996615,1737557438950,-500.0,0.00019998,3]
[349996617,1737557438959,-500.0,0.00019998,3]
[349996619,1737557438968,-500.0,0.00019998,3]
[349996621,1737557438978,-500.0,0.00019998,3]
[349996623,1737557438987,-500.0,0.00019998,3]
[349996625,1737557438997,-500.0,0.00019998,3]
[349996628,1737557439006,-500.0,0.00019998,3]
[349996631,1737557439016,-500.0,0.00019998,3]
[349996634,1737557439026,-500.0,0.00019998,3]
[349996636,1737557439035,-500.0,0.00019998,3]
[349996638,1737557439044,-500.0,0.00019998,3]
[349996640,1737557439058,-500.0,0.00019998,3]
[349996642,1737557439068,-500.0,0.00019998,3]
[349996644,1737557439077,-500.0,0.00019998,3]
[349996646,1737557439087,-500.0,0.00019998,3]
[349996648,1737557439096,-508.40514349,0.00019998,3]
[349996650,1737557439105,-500.0,0.00019998,3]
[349996652,1737557439114,-500.0,0.00019998,3]
[349996654,1737557439124,-500.0,0.00019998,3]
[349996656,1737557439134,-500.0,0.00019998,3]
[349996658,1737557439144,-500.0,0.00019998,3]
[349996660,1737557439153,-500.0,0.00019998,3]
[349996662,1737557439162,-607.13,0.00019998,3]
[349996664,1737557439172,-631.59,0.00019998,3]
[349996666,1737557439181,-500.0,0.00019998,3]
[349996668,1737557439190,-1015.1,0.00019998,3]
[349996670,1737557439199,-1015.1,0.00019998,3]
[349996672,1737557439209,-500.0,0.00019998,3]
[349996674,1737557439218,-436.26227924,0.00019998,3]
[349996676,1737557439226,-500.0,0.00019998,3]
[349996678,1737557439236,-500.0,0.00019998,3]
[349996680,1737557439245,-504.11126872,0.00019998,3]
[349996682,1737557439254,-500.0,0.00019998,3]
[349996684,1737557439263,-500.0,0.00019998,3]
[349996686,1737557439272,-502.88738164,0.00019998,3]
[349996695,1737557439355,-500.0,0.00019998,3]
[349996697,1737557439365,-500.0,0.00019998,3]
[349996699,1737557439376,-500.0,0.00019998,3]
[349996701,1737557439385,-500.0,0.00019998,3]
[349996703,1737557439395,-500.0,0.00019998,3]
[349996705,1737557439404,-500.0,0.00019998,3]
[349996707,1737557439413,-500.0,0.00019998,3]
[349996709,1737557439423,-504.42842914,0.00019998,3]
[349996711,1737557439432,-500.0,0.00019998,3]
[349996713,1737557439442,-500.0,0.00019998,3]
[349996715,1737557439451,-500.0,0.00019998,3]
[349996717,1737557439460,-500.0,0.00019998,3]
[349996719,1737557439470,-514.28727751,0.00019998,3]
[349996721,1737557439479,-438.70048355,0.00019998,3]
[349996723,1737557439488,-500.0,0.00019998,3]
[349996725,1737557439497,-500.0,0.00019998,3]
[349996727,1737557439507,-500.0,0.00019998,3]